Cogmind - Beta 17.1 @@@ ROGUE MODE // 2026.09.01 @ 21:28:56 Player: Feeks Result: Self-destructed Performance ------------- Evolutions (1) 500 Regions Visited (3) 600 Robots Destroyed (26) 130 Value Destroyed (877) 877 Prototype IDs (0) 0 Alien Tech Used (0) 0 Bonus (93) 93 TOTAL SCORE: 2200 Bonus ------- Follower Combat Kills 93 Cogmind --------- Core Integrity 51/400 Matter 255/300 Energy 16/100 System Corruption 4% Temperature Cool (0) Movement Walking (120) Location -9/Materials Parts ------- > --- POWER (1) -------- (None) > --- PROPULSION (3) --- Aluminum Leg Aluminum Leg Aluminum Leg > --- UTILITY (3) ------ Improved Heat Sink Large Storage Unit Light Armor Plating > --- WEAPON (2) ------- Heavy EM Pulse Gun Heavy EM Pulse Gun > --- INVENTORY (15) --- Ion Engine Reinforced Ion Engine Heat Sink Cooling System Large Storage Unit Improved Targeting Computer Tractor Beam Mining Laser Mining Laser Peak State ------------ > --- POWER ------------ Ion Engine > --- PROPULSION ------- Aluminum Leg Aluminum Leg Aluminum Leg > --- UTILITY ---------- Improved Heat Sink Large Storage Unit ECM Suite > --- WEAPON ----------- Heavy EM Pulse Gun Heavy EM Pulse Gun > --- INVENTORY -------- Ion Engine Reinforced Ion Engine Aluminum Leg Aluminum Leg Heat Sink Cooling System Large Storage Unit Improved Targeting Computer Tractor Beam Heavy EM Pulse Gun Heavy EM Pulse Gun Heavy Assault Rifle Mining Laser Mining Laser [Rating: 15] Favorites ----------- Power Ion Engine Engine Ion Engine Propulsion Aluminum Leg Leg Aluminum Leg Utility Large Storage Unit Device ECM Suite Storage Large Storage Unit Processor Signal Interpreter Protection Weapon Shielding Weapon Heavy EM Pulse Gun Energy Gun Heavy EM Pulse Gun Ballistic Gun Assault Rifle Special Weapon Mining Laser Build | -11 -10 -10 -9 ------- Run | Yrd Mat Min Mat Slots Evolved 2 | . . . 2 Power . | . . . . Propulsion 1 | . . . 1 Utility 1 | . . . 1 Weapon . | . . . . Parts Attached 37 | 5 5 2 25 Power 5 | 1 . 1 3 Engine 5 | 1 . 1 3 Core . | . . . . Reactor . | . . . . Propulsion 13 | 2 2 . 9 Treads . | . . . . Leg 13 | 2 2 . 9 Wheel . | . . . . Hover . | . . . . Flight . | . . . . Utility 9 | 1 2 1 5 Device 4 | . . . 4 Storage 2 | 1 1 . . Processor 1 | . . 1 . Hackware . | . . . . Protection 2 | . 1 . 1 Artifact . | . . . . Weapon 10 | 1 1 . 8 Energy Gun 6 | 1 . . 5 Energy Cannon . | . . . . Ballistic Gun 3 | . 1 . 2 Ballistic Cannon . | . . . . Launcher . | . . . . Special Weapon 1 | . . . 1 Impact Weapon . | . . . . Slashing Weapon . | . . . . Piercing Weapon . | . . . . Special Melee Weapon . | . . . . Unidentified Prototypes . | . . . . Parts Lost 12 | . . 1 11 Power 2 | . . . 2 Propulsion 3 | . . . 3 Utility 3 | . . 1 2 Weapon 4 | . . . 4 Highest Loss Streak 5 | . . 1 5 To Critical Strikes . | . . . . Average Backups 10 | 2 6 11 13 Power 1 | . 1 . 1 Propulsion 1 | . . 2 2 Utility 5 | . 3 7 6 Weapon 2 | 1 1 1 2 Tool/Special . | . . . . Unused Backups 9 | . . . 9 Power 1 | . . . 1 Propulsion . | . . . . Utility 6 | . . . 6 Weapon 2 | . . . 2 Tool/Special . | . . . . Average Slot Usage (%) 94 | . 91 90 97 Engine 12 | . 14 14 10 Leg 30 | . 28 28 32 Device 10 | . . . 18 Storage 12 | . 14 14 11 Processor 1 | . . . 2 Protection 3 | . 10 4 . Energy Gun 14 | . 14 14 14 Ballistic Gun 8 | . 10 14 6 Peak Build Rating 15 | 5 8 8 15 Average Rating 9 | 3 6 7 12 On Entrance 5 | . 5 8 8 Avg Prop Armor Cover (%) . | . . . . Naked Turns . | . . . . Heaviest Build 34 | 12 30 30 34 Greatest Support 30 | 20 20 20 30 Greatest Overweight (x) 1 | . 1 1 1 Average Overweight (x) . | . . 1 . Largest Inventory Capacity 15 | 8 15 15 15 Average Capacity 13 | 6 9 15 15 Most Carried 15 | 5 12 12 15 Average Carried 10 | 2 6 11 13 Final Capacity 15 | 8 15 15 15 Final Carried 12 | 3 12 12 9 Class Distribution -------------------- 57% | Mutant 42% | Scavenger-Mutant Dominant Class ---------------- Mutant | -10/Materials Mutant | -10/Mines Scavenger-Mutant | -9/Materials Resources | -11 -10 -10 -9 ----------- Run | Yrd Mat Min Mat Matter Collected 715 | 227 142 32 314 Remotely 244 | . . . 244 Salvage Created 1064 | . 224 32 808 Parts 67 | . 18 2 47 Haulers Intercepted . | . . . . Recyclers Shooed . | . . . . Parts Field Recycled . | . . . . Retrieved Matter . | . . . . Parts Self-Destructed . | . . . . Prevented . | . . . . Parts Restored . | . . . . Kills | -11 -10 -10 -9 ------- Run | Yrd Mat Min Mat Combat Hostiles Destroyed 23 | . 6 1 16 Guns 21 | . 6 1 14 Classes Destroyed 7 | . 3 . 4 Builder 1 | . 1 . . Watcher 2 | . . . 2 Swarmer 2 | . 2 . . Grunt 14 | . 4 1 9 Brawler 1 | . . . 1 Duelist 1 | . . . 1 Sentry 5 | . . . 5 Best Kill Streak 4 | . 2 1 4 Combat Bots Only 4 | . 2 1 4 Max Kills in Single Turn 2 | . 1 1 2 Gunslinging . | . . . . Exploded . | . . . . Melee . | . . . . Uniques/NPCs Destroyed . | . . . . Combat | -11 -10 -10 -9 -------- Run | Yrd Mat Min Mat Hostile Shots Fired 185 | . 33 19 133 Missed 53 | . 6 6 41 Hits 132 | . 27 13 92 Melee 11 | . . . 11 Projectile 121 | . 27 13 81 Critical Strikes 4 | . . . 4 Damage Taken 2184 | . 341 170 1673 Core 421 | . 39 33 349 Absorbed by Shields . | . . . . Redirected to Shielding 51 | . 31 20 . Regen/Repaired (Parts) 89 | . . . 89 Core Remaining (%) 85 | 100 . 71 . Volleys Fired 88 | . 23 9 56 Largest 2 | . 2 2 2 Hottest 100 | . 70 70 100 Shots Fired 169 | . 46 18 105 Gun 165 | . 46 18 101 Cannon . | . . . . Launcher . | . . . . Special 4 | . . . 4 Kinetic 73 | . 23 9 41 Thermal 59 | . 23 9 27 Explosive . | . . . . Electromagnetic 37 | . . . 37 Robot Hit Streak 11 | . 4 5 11 Robot Miss Streak 3 | . 3 2 2 Penetration Max . | . . . . Secondary Targets 2 | . 1 . 1 Max Gunslinging Chain 1 | . 1 . 1 Shots Hit Robots 112 | . 25 13 74 Core Hits 51 | . 13 4 34 Critical Kills . | . . . . Critical Parts Destroyed . | . . . . Critical Strikes 4 | . 1 1 2 Burn 3 | . 1 1 1 Corrupt 1 | . . . 1 Melee Attacks . | . . . . Impact . | . . . . Slashing . | . . . . Piercing . | . . . . Sneak Attacks . | . . . . Combat Hostiles . | . . . . Follow-up Attacks . | . . . . Damage Inflicted 1470 | . 347 157 966 Guns 1468 | . 347 157 964 Cannons . | . . . . Explosions . | . . . . Melee . | . . . . Ramming 2 | . . . 2 Kinetic 524 | . 182 56 286 Thermal 479 | . 165 101 213 Explosive . | . . . . Electromagnetic 465 | . . . 465 Impact . | . . . . Slashing . | . . . . Piercing . | . . . . Highest Corruption 4 | . . . 4 Average Corruption 1 | . . . 1 Corruption Purged . | . . . . Corruption Blocked . | . . . . Effects 1 | . . . 1 Heat Flow Errors 1 | . . . 1 Overload Shots . | . . . . Overflow Damage . | . . . . Projectiles . | . . . . Explosions . | . . . . Melee . | . . . . Knockbacks . | . . . . Impact . | . . . . Kinetic . | . . . . Secondary . | . . . . Self-Inflicted Damage . | . . . . Shots . | . . . . Rammed . | . . . . Targets Rammed 1 | . . . 1 Kicked 1 | . . . 1 Crushed . | . . . . Highest Temperature 242 | . 231 177 242 Average Temperature 83 | . 80 95 81 Received Heat Transfer 723 | . 168 96 459 Effects 3 | . . . 3 Interference 3 | . . . 3 Siege Activations . | . . . . Martial Activations . | . . . . Shielding Activations . | . . . . Robots Disrupted . | . . . . Combat Hostiles . | . . . . Robots Corrupted 2 | . . . 2 Combat Hostiles 2 | . . . 2 Parts Fried 1 | . . . 1 Impact Corruptions . | . . . . Robots Melted . | . . . . Combat Hostiles . | . . . . Parts Melted 3 | . . 1 2 Heat Transferred 1628 | . 555 370 703 Parts Sabotaged . | . . . . Parts Stolen . | . . . . Parts Stripped . | . . . . Power Chain Reactions . | . . . . Alert | -11 -10 -10 -9 ------- Run | Yrd Mat Min Mat Maximum Alert Level . | . . . . Low Security (%) 100 | 100 100 100 100 Level 1 . | . . . . Level 2 . | . . . . Level 3 . | . . . . Level 4 . | . . . . Level 5 . | . . . . High Security . | . . . . Max Security . | . . . . Peak Influence 185 | . 112 20 185 Initial 19 | . . 19 . Average 79 | . 53 4 118 Influence Increases 790 | . 172 20 598 Destroy 0b10 Robot/C 520 | . 120 20 380 Destroy 0b10 Robot/NC 15 | . 5 . 10 Destroy Leader 144 | . 30 . 114 Allied During Kill 13 | . . . 13 Successful Hack 3 | . . . 3 Disable Machine 15 | . . . 15 Destroy Structure 5 | . 2 . 3 Lose Combat Pursuer 75 | . 15 . 60 Influence Decreases 687 | . 120 72 495 Entered New Map 33 | . . 33 . Time Decay 491 | . 120 39 332 Lost Part 110 | . . . 110 Lost Ally 53 | . . . 53 Squads Dispatched 2 | . 1 . 1 Investigation 1 | . . . 1 Extermination . | . . . . Reinforcement 1 | . 1 . . Assault . | . . . . Garrison . | . . . . Intercept . | . . . . Searches Triggered . | . . . . Construction Impeded . | . . . . Haulers Reinforced . | . . . . Active Scanning Responses . | . . . . Cargo Convoy Interrupts . | . . . . Stealth | -11 -10 -10 -9 --------- Run | Yrd Mat Min Mat Distress Signals 6 | . 1 . 5 Communications Jammed . | . . . . Distress Signals . | . . . . Times Spotted 45 | . 11 2 32 Peak Tracking Total 6 | . 6 2 6 Tactical Retreats 9 | . 1 . 8 ECM-based Alert Blocks 4 | . . . 4 Traps | -11 -10 -10 -9 ------- Run | Yrd Mat Min Mat Traps Triggered 1 | . . . 1 Indirectly . | . . . . Trap Hack Attempts . | . . . . Triggered . | . . . . Disarmed . | . . . . Reprogrammed . | . . . . Reused . | . . . . Traps Extracted . | . . . . Installed . | . . . . Triggered . | . . . . Machines | -11 -10 -10 -9 ---------- Run | Yrd Mat Min Mat Machines Disabled 1 | . . . 1 Max in Single Turn 1 | . . . 1 Machines Repaired . | . . . . Machines Dismantled . | . . . . Machines Sabotaged . | . . . . Overloaded Fab Kills . | . . . . Hacking | -11 -10 -10 -9 --------- Run | Yrd Mat Min Mat Machines Accessed 2 | . 1 . 1 Terminals . | . . . . Fabricators . | . . . . Repair Stations 1 | . . . 1 Recycling Units 1 | . 1 . . Scanalyzers . | . . . . Garrison Access . | . . . . Total Hacks 4 | . 1 . 3 Successful 3 | . 1 . 2 Failed 1 | . . . 1 Catastrophic . | . . . . Database Lockouts . | . . . . Manual . | . . . . Terminals . | . . . . Fabricators . | . . . . Repair Stations 3 | . . . 3 Recycling Units 1 | . 1 . . Scanalyzers . | . . . . Garrison Access . | . . . . Terminal Hacks . | . . . . Fabricator Hacks . | . . . . Repair Station Hacks 2 | . . . 2 Scan Component 1 | . . . 1 Repair 1 | . . . 1 Recycling Unit Hacks 1 | . 1 . . Report Inventory 1 | . 1 . . Scanalyzer . | . . . . Garrison Access Hacks . | . . . . Unauthorized Hacks . | . . . . Terminals . | . . . . Fabricators . | . . . . Repair Stations . | . . . . Recycling Units . | . . . . Scanalyzers . | . . . . Garrison Access . | . . . . Data Cores Recovered . | . . . . Used . | . . . . Hacking Detections 1 | . 1 . . Full Trace Events . | . . . . Feedback Events . | . . . . Feedback Blocked . | . . . . Robot Schematics Acquired . | . . . . Robots Built . | . . . . Authchips . | . . . . Time . | . . . . Total Robot Build Rating . | . . . . Part Schematics Acquired . | . . . . Parts Built . | . . . . Authchips . | . . . . Time . | . . . . Total Part Build Rating . | . . . . Part Studies Acquired . | . . . . Parts Repaired 1 | . . . 1 Time 26 | . . . 26 Parts Recycled . | . . . . Recycled Matter . | . . . . Retrieved Matter . | . . . . Retrieved Components . | . . . . Parts Scanalyzed . | . . . . Part Schematics Acquired . | . . . . Parts Damaged . | . . . . Bothacking | -11 -10 -10 -9 ------------ Run | Yrd Mat Min Mat Used RIF Installer . | . . . . Robots Hacked . | . . . . Non-combat . | . . . . Combat . | . . . . Robot Hacks Applied . | . . . . Relay Couplers Released . | . . . . Fabnet Peak Effective % . | . . . . Robots Rewired . | . . . . Allies Hacked . | . . . . Hacks Repelled . | . . . . Allies | -11 -10 -10 -9 -------- Run | Yrd Mat Min Mat Total Allies 3 | . . 3 . Largest Group 3 | . . 3 3 Highest-Rated Group 40 | . . 40 40 Highest-Rated Ally 16 | . . 16 16 Total Orders . | . . . . Ally Attacks 14 | . . . 14 Total Damage 167 | . . . 167 Kills 3 | . . . 3 Allies Corrupted . | . . . . Allies Melted . | . . . . Intel | -11 -10 -10 -9 ------- Run | Yrd Mat Min Mat Active Infowar (turns) 287 | . . . 287 ECM 287 | . . . 287 Robot Analysis Total . | . . . . Derelict Logs Recovered 2 | . . 2 . Drone Launches . | . . . . Drone Recoveries . | . . . . Exploration | -11 -10 -10 -9 ------------- Run | Yrd Mat Min Mat Turns Passed 1375 | 73 339 196 767 Spaces Moved 541 | 52 171 81 237 Core 14 | 14 . . . Treads . | . . . . Legs 527 | 38 171 81 237 Wheels . | . . . . Hover . | . . . . Flight . | . . . . Fastest Speed 50 | 50 120 190 120 Average Speed 159 | 101 139 190 175 Slowest Speed 190 | 120 190 190 190 Overloaded Moves . | . . . . Propulsion Burnouts . | . . . . Robots Hopped . | . . . . Potential Cave-ins . | . . . . Cave-ins Triggered 1 | . . . 1 Exploration Rate (%) 19 | 4 33 13 29 Regions Visited 3 Branch Regions 1 Pre-discovered Areas 1 | . . 1 . Known Exits Taken 1 | . . 1 . Unknown Exits Taken 2 | 1 1 . . Scrap Searched . | . . . . Spaces Dug 4 | . . . 4 Terrain Destroyed 4 | . . . 4 Melee . | . . . . Projectile 4 | . . . 4 AOE . | . . . . Terrain Rammed . | . . . . Walls Destroyed . | . . . . Machines Disabled . | . . . . Actions | -11 -10 -10 -9 --------- Run | Yrd Mat Min Mat Total 884 | 72 225 106 481 Wait 141 | 8 14 12 107 Move 538 | 51 170 80 237 Hop . | . . . . Pick Up 51 | 8 12 2 29 Fast Attach 1 | . . . 1 Attach 22 | 5 2 1 14 Detach . | . . . . Swap 21 | . 3 1 17 Drop 21 | . 1 1 19 Fire 88 | . 23 9 56 Melee . | . . . . Ram . | . . . . Kick 1 | . . . 1 Crush . | . . . . Escape Stasis . | . . . . Rewire . | . . . . Trap . | . . . . Miscellaneous . | . . . . Route ------- -11/Scrapyard -10/Materials -10/Mines -9/Materials (discovered 2 exits: [*Min] / [*Sto]) History --------- Turn | Location | Event 11 | -11/Scrapyard | Discovered new exit (range 15) 74 | -11/Scrapyard | Entered Materials 183 | -10/Materials | Discovered new exit (range 16) 318 | -10/Materials | Build established: Mutant 413 | -10/Materials | Entered Mines 484 | -10/Mines | Assisted by bots powering up and referring to "LRC-V3" 488 | -10/Mines | Learned Materials interactive machine intel 599 | -10/Mines | Received a Rocket Launcher from a helpful Derelict 599 | -10/Mines | Discovered new exit (range 5) 606 | -10/Mines | Identified exit to Materials 609 | -10/Mines | Entered Materials 609 | -9/Materials | Accompanied by 3 allies 609 | -9/Materials | Evolved 2 slots: Propulsion x1, Utility x1 610 | -9/Materials | Loaded intel: 18 interactive machine locations 705 | -9/Materials | Lost 3 allies 1138 | -9/Materials | Discovered new exit (range 16) 1308 | -9/Materials | Repaired Aluminum Leg 1321 | -9/Materials | Discovered new exit (range 8) 1353 | -9/Materials | Core integrity fell below 50% 1357 | -9/Materials | Crushed by falling debris 1368 | -9/Materials | Core integrity fell below 20% 1376 | -9/Materials | Self-destructed Last Messages --------------- 01338_ K-01 Serf cleans the Repair Station. 01341_ K-01 Serf cleans the Purification Channel. 01341_ K-01 Serf cleans the Repair Station. 01349_ Aluminum Leg severed. 01357_ The unstable cave ceiling collapses. 01357_ Crushed by falling debris. 01357_ Ion Engine destroyed. 01357_ System corrupted by crushing effect (+1). 01357_ Hvy. EM Pulse Gun destroyed. 01357_ System corrupted by crushing effect (+1). 01357_ ECM Suite destroyed. 01357_ System corrupted by crushing effect (+1). 01357_ Hvy. EM Pulse Gun destroyed. 01362_ Aluminum Leg destroyed. 01372_ The unstable cave ceiling collapses. 01372_ L-31 Rogue crushed by falling debris. 01372_ L-31 Rogue system corrupted by crushing effect. 01373_ L-31 Rogue system terminally corrupted. Map ----- +----------------------------------------------------+ | ??????""S"" # #######+###??????????????????? | | ??????"""" ## ##????????????????????????????? | | ??????? ## #?????????????????????????????? | | ??????########## #?????????""??????????????????? | | ???????????????# #?????????T"??????????????????? | | ??????????????## ####??????""??????????????????? | | ??????????????# "#??????????????????????????? | | ??????????????# ""#??????????????????????????? | | ??????????????# % #??????????????????????????? | | ?""???????????# < ""#??????????????????????????? | | ?T"???????????# !!#??????????????????????????? | | ?""???????????# ""#??????????????????????????? | | ??????????????# "#??????????????????????????? | | ??????????????## ####??????????????????????????? | | ???????????????# #######+######????????????????? | | ???????????????# %[ ] ?????????????? | | ???????????????# ! ##+##????????????????????? | | ???????????????# #????????????????????????? | | ??????##########a #????????????????????????? | | ????? #????????????????????????? | | ????? +?"T"????????????????????? | | ????? " " ^["""#?"""????????????????????? | | ????????""" """ R"#????????????????????????? | | ?????????" "" ^ %"""##???????????????????????? | | ?????????"" """ ^= gg##??????????????????????? | | ?????????"" "" #@#??????????????????""??? | | ?????????"" """ ###??????????????????"T??? | | ??????????" """ #???????????????????""??? | | ?????????????""" #### #?????????????? | | ??????????? " #?????????????? | | ?????????? < / ????????? | | ????????? # ????????? | | ?????????# ##### #?????????????? | | ?????????############ ##????? #?????????????? | | ????????????????????# #??????? #????????????? | | ????????????????????# #???????? !#????????????? | | ????????????????????+ #?????????!##????????????? | | ????????????????????# #????????????????????????? | | ????????????????????# #????????????????????????? | | ????????????????????# ?????????????????????????? | | ????????????????????# ?????????????????????????? | | ????????????????????# ?????????????????????????? | | ????????????????????# ???????"""""?????????????? | | ?????????????????????? ????????""T""?????????????? | | ?????????????????????????????????????????????????? | | ?????????????????????????????????????????????????? | | ?????????????????????????????????????????????????? | | ?????????????????????????????????????????????????? | | ?????????????????????????????????????????????????? | | ?????????????????????????????????????????????????? | +----------------------------------------------------+ Best States ------------- Heat Dissipation 42 Energy Generation 10 Energy Capacity 250 Matter Stores 300 Matter Capacity 300 Sight Range 16 Terrain Scan Density 10 ECM Strength 1 Armor Coverage 150 Weapon Shielding 33 Evasion (%) 55 Item Schematics ----------------- None Robot Schematics ------------------ None Fabricated ------------ Nothing Repaired ---------- Aluminum Leg | 1% | -9/Materials Studied --------- None Alien Tech Used ----------------- None Achievements -------------- Use The Force Challenges ------------ None Game ------ Seed BattleAuthchipFocus Manual? 0 Play Time 00:41:10 Cumulative 5.9 hours Start 2026.08.29 @ 02:04:24 End 2026.09.01 @ 21:28:56 Sessions 6 Manual Loads 0 Difficulty Rogue Special Mode None Game No. 7 Rogue 7 Adventurer 0 Explorer 0 Win Type - Total 0 Types 0/0/0/0/0/0/0/0/0/0 Lore% 1 Gallery% 5 Achievement% 7 Wizard Run 0 Options --------- Layout 1 ASCII 1 Keyboard 0 Movement Mouse Keybinds 0 Fullscreen 1 Font 16/SmallcapsGlow Map View 50x40 Zoom Use 0% Tactical HUD 1 Map Filters NONE Filters NONE Steam SD RUN: 4f3756ad-0d7f-4995-a738-75ccc23275c9